[Event "Titled Tuesday Blitz March 01 Early 2022"]
[White "Fus, Jakub"]
[Black "Abdyzhapar, Asylbek"]
[WhiteFideId "1193023"]
[BlackFideId "13800337"]
[WhiteElo "2111"]
[BlackElo "2331"]
[Result "1-0"]
[Round "10"]
[TimeControl "180+1"]
[Date "2022.03.01"]
[WhiteClock "0:00:12"]
[BlackClock "0:00:30"]

1. e4 {[%clk 0:03:00]}  d6 {[%clk 0:02:59]} 2. d4 {[%clk 0:03:00]}  Nf6 {[%clk 0:02:59]} 3. Nc3 {[%clk 0:03:00]}  g6 {[%clk 0:03:00]} 4. Nf3 {[%clk 0:02:55]}  Bg7 {[%clk 0:02:59]} 5. h3 {[%clk 0:02:52]}  O-O {[%clk 0:02:59]} 6. Bd3 {[%clk 0:02:52]}  Nc6 {[%clk 0:03:00]} 7. O-O {[%clk 0:02:52]}  e5 {[%clk 0:03:00]} 8. d5 {[%clk 0:02:45]}  Ne7 {[%clk 0:03:00]} 9. a4 {[%clk 0:02:45]}  c6 {[%clk 0:02:57]} 10. Bc4 {[%clk 0:02:39]}  cxd5 {[%clk 0:02:57]} 11. exd5 {[%clk 0:02:39]}  Nh5 {[%clk 0:02:54]} 12. a5 {[%clk 0:02:29]}  f5 {[%clk 0:02:52]} 13. Ng5 {[%clk 0:02:24]}  h6 {[%clk 0:02:45]} 14. Ne6 {[%clk 0:02:23]}  Bxe6 {[%clk 0:02:45]} 15. dxe6 {[%clk 0:02:24]}  Rc8 {[%clk 0:02:46]} 16. Bb3 {[%clk 0:02:18]}  Nf6 {[%clk 0:02:44]} 17. a6 {[%clk 0:02:16]}  b6 {[%clk 0:02:44]} 18. Nd5 {[%clk 0:02:15]}  Nfxd5 {[%clk 0:02:43]} 19. Bxd5 {[%clk 0:02:16]}  Nxd5 {[%clk 0:02:43]} 20. Qxd5 {[%clk 0:02:17]}  Qe7 {[%clk 0:02:41]} 21. Rd1 {[%clk 0:02:07]}  Rfd8 {[%clk 0:02:30]} 22. c3 {[%clk 0:02:03]}  Rc5 {[%clk 0:02:29]} 23. Qb7 {[%clk 0:02:03]}  Rc7 {[%clk 0:02:26]} 24. Qd5 {[%clk 0:02:02]}  Bf8 {[%clk 0:02:18]} 25. Be3 {[%clk 0:01:51]}  Re8 {[%clk 0:02:15]} 26. Bxb6 {[%clk 0:01:39]}  axb6 {[%clk 0:02:14]} 27. a7 {[%clk 0:01:40]}  Rxa7 {[%clk 0:02:14]} 28. Rxa7 {[%clk 0:01:39]}  Qxa7 {[%clk 0:02:13]} 29. e7+ {[%clk 0:01:40]}  Kg7 {[%clk 0:02:11]} 30. exf8=Q+ {[%clk 0:01:40]}  Rxf8 {[%clk 0:02:08]} 31. Qxd6 {[%clk 0:01:39]}  e4 {[%clk 0:02:07]} 32. Qe5+ {[%clk 0:01:33]}  Kh7 {[%clk 0:02:04]} 33. Rd6 {[%clk 0:01:33]}  Rf7 {[%clk 0:01:59]} 34. b4 {[%clk 0:01:23]}  Qa1+ {[%clk 0:01:55]} 35. Kh2 {[%clk 0:01:22]}  Qe1 {[%clk 0:01:55]} 36. Qd4 {[%clk 0:01:12]}  h5 {[%clk 0:01:43]} 37. Qxb6 {[%clk 0:01:09]}  Qxc3 {[%clk 0:01:40]} 38. Rxg6 {[%clk 0:01:03]}  Qe5+ {[%clk 0:01:40]} 39. g3 {[%clk 0:01:01]}  f4 {[%clk 0:01:32]} 40. Rh6+ {[%clk 0:00:51]}  Kg8 {[%clk 0:01:25]} 41. Qe6 {[%clk 0:00:39]}  fxg3+ {[%clk 0:01:23]} 42. fxg3 {[%clk 0:00:40]}  Qb2+ {[%clk 0:01:20]} 43. Kh1 {[%clk 0:00:36]}  Qc1+ {[%clk 0:01:19]} 44. Kh2 {[%clk 0:00:35]}  Qd2+ {[%clk 0:01:19]} 45. Kh1 {[%clk 0:00:36]}  Qe1+ {[%clk 0:01:19]} 46. Kh2 {[%clk 0:00:36]}  Qf2+ {[%clk 0:01:19]} 47. Kh1 {[%clk 0:00:36]}  Qf3+ {[%clk 0:01:02]} 48. Kh2 {[%clk 0:00:36]}  Kg7 {[%clk 0:00:52]} 49. Qg6+ {[%clk 0:00:23]}  Kf8 {[%clk 0:00:52]} 50. Qd6+ {[%clk 0:00:22]}  Kg8 {[%clk 0:00:43]} 51. Qg6+ {[%clk 0:00:20]}  Kf8 {[%clk 0:00:42]} 52. Rh8+ {[%clk 0:00:21]}  Ke7 {[%clk 0:00:42]} 53. Qg5+ {[%clk 0:00:21]}  Rf6 {[%clk 0:00:30]} 54. Qe5+ {[%clk 0:00:15]}  Kf7 {[%clk 0:00:29]} 55. Qe8+ {[%clk 0:00:12]}  Kg7 {[%clk 0:00:30]} 56. Qg8# {[%clk 0:00:12]} 1-0


[Site "https://www.chess.com"]

[Event "Titled Tuesday Blitz March 01 Early 2022"]
[White "Gerbelli Neto, Eduardo"]
[Black "Gatterer, Florian"]
[WhiteFideId "2103281"]
[BlackFideId "811688"]
[WhiteElo "2178"]
[BlackElo "2218"]
[Result "1/2-1/2"]
[Round "10"]
[TimeControl "180+1"]
[Date "2022.03.01"]
[WhiteClock "0:00:21"]
[BlackClock "0:00:12"]

1. e4 {[%clk 0:03:00]}  e5 {[%clk 0:02:59]} 2. Nc3 {[%clk 0:03:00]}  Nf6 {[%clk 0:02:57]} 3. f4 {[%clk 0:03:00]}  d5 {[%clk 0:02:56]} 4. fxe5 {[%clk 0:03:00]}  Nxe4 {[%clk 0:02:55]} 5. d3 {[%clk 0:03:00]}  Nxc3 {[%clk 0:02:49]} 6. bxc3 {[%clk 0:03:01]}  Be7 {[%clk 0:02:48]} 7. Nf3 {[%clk 0:03:02]}  O-O {[%clk 0:02:48]} 8. d4 {[%clk 0:02:54]}  c5 {[%clk 0:02:47]} 9. Bd3 {[%clk 0:02:48]}  Nc6 {[%clk 0:02:46]} 10. O-O {[%clk 0:02:35]}  Bg4 {[%clk 0:02:42]} 11. Be3 {[%clk 0:02:28]}  c4 {[%clk 0:02:22]} 12. Be2 {[%clk 0:02:28]}  Bf5 {[%clk 0:02:22]} 13. Rb1 {[%clk 0:02:23]}  b6 {[%clk 0:02:16]} 14. Qd2 {[%clk 0:02:19]}  Bg6 {[%clk 0:02:15]} 15. Rf2 {[%clk 0:01:56]}  Qd7 {[%clk 0:02:15]} 16. Rbf1 {[%clk 0:01:56]}  f6 {[%clk 0:02:15]} 17. Nh4 {[%clk 0:01:40]}  Be4 {[%clk 0:02:05]} 18. exf6 {[%clk 0:01:36]}  Bxf6 {[%clk 0:02:01]} 19. Bg5 {[%clk 0:01:15]}  Bxg5 {[%clk 0:01:48]} 20. Qxg5 {[%clk 0:01:15]}  Qe7 {[%clk 0:01:42]} 21. Rxf8+ {[%clk 0:01:00]}  Rxf8 {[%clk 0:01:43]} 22. Rxf8+ {[%clk 0:00:59]}  Kxf8 {[%clk 0:01:32]} 23. Qxe7+ {[%clk 0:00:59]}  Kxe7 {[%clk 0:01:32]} 24. Bf3 {[%clk 0:00:59]}  Bxf3 {[%clk 0:01:08]} 25. Nxf3 {[%clk 0:00:50]}  Kf6 {[%clk 0:01:07]} 26. g4 {[%clk 0:00:45]}  g6 {[%clk 0:00:55]} 27. Kf2 {[%clk 0:00:45]}  b5 {[%clk 0:00:54]} 28. Ke3 {[%clk 0:00:45]}  h6 {[%clk 0:00:52]} 29. h4 {[%clk 0:00:45]}  a5 {[%clk 0:00:50]} 30. a3 {[%clk 0:00:41]}  b4 {[%clk 0:00:50]} 31. cxb4 {[%clk 0:00:40]}  axb4 {[%clk 0:00:48]} 32. axb4 {[%clk 0:00:32]}  Nxb4 {[%clk 0:00:48]} 33. c3 {[%clk 0:00:32]}  Nd3 {[%clk 0:00:40]} 34. g5+ {[%clk 0:00:26]}  hxg5 {[%clk 0:00:39]} 35. Nxg5 {[%clk 0:00:27]}  Ne1 {[%clk 0:00:32]} 36. Kf2 {[%clk 0:00:24]}  Nd3+ {[%clk 0:00:29]} 37. Ke3 {[%clk 0:00:23]}  Nc1 {[%clk 0:00:29]} 38. Nf3 {[%clk 0:00:23]}  Kf5 {[%clk 0:00:29]} 39. Ne5 {[%clk 0:00:23]}  Nb3 {[%clk 0:00:18]} 40. Nc6 {[%clk 0:00:22]}  g5 {[%clk 0:00:16]} 41. hxg5 {[%clk 0:00:22]}  Kxg5 {[%clk 0:00:16]} 42. Ne7 {[%clk 0:00:22]}  Kf6 {[%clk 0:00:15]} 43. Nxd5+ {[%clk 0:00:23]}  Ke6 {[%clk 0:00:14]} 44. Nb6 {[%clk 0:00:23]}  Na5 {[%clk 0:00:14]} 45. Ke4 {[%clk 0:00:22]}  Kd6 {[%clk 0:00:14]} 46. Nxc4+ {[%clk 0:00:16]}  Nxc4 {[%clk 0:00:13]} 47. Kd3 {[%clk 0:00:17]}  Nb6 {[%clk 0:00:12]} 48. c4 {[%clk 0:00:17]}  Nxc4 {[%clk 0:00:12]} 49. Kxc4 {[%clk 0:00:18]}  Kc6 {[%clk 0:00:12]} 50. d5+ {[%clk 0:00:18]}  Kd6 {[%clk 0:00:12]} 51. Kd4 {[%clk 0:00:19]}  Ke7 {[%clk 0:00:12]} 52. Ke5 {[%clk 0:00:19]}  Kd7 {[%clk 0:00:12]} 53. d6 {[%clk 0:00:19]}  Kd8 {[%clk 0:00:12]} 54. Ke6 {[%clk 0:00:19]}  Ke8 {[%clk 0:00:12]} 55. d7+ {[%clk 0:00:20]}  Kd8 {[%clk 0:00:12]} 56. Kd6 {[%clk 0:00:21]} 1/2-1/2


[Site "https://www.chess.com"]

[Event "Titled Tuesday Blitz March 01 Early 2022"]
[White "Gormally, Daniel W"]
[Black "Di Nicolantonio, Lucas"]
[WhiteFideId "406465"]
[BlackFideId "680460"]
[WhiteElo "2543"]
[BlackElo "2381"]
[Result "1-0"]
[Round "10"]
[TimeControl "180+1"]
[Date "2022.03.01"]
[WhiteClock "0:00:19"]
[BlackClock "0:00:04"]

1. c3 {[%clk 0:03:00]}  e5 {[%clk 0:02:58]} 2. d4 {[%clk 0:03:00]}  Nc6 {[%clk 0:02:53]} 3. Nf3 {[%clk 0:02:56]}  exd4 {[%clk 0:02:49]} 4. cxd4 {[%clk 0:02:56]}  d5 {[%clk 0:02:50]} 5. Nc3 {[%clk 0:02:56]}  Nf6 {[%clk 0:02:49]} 6. Bg5 {[%clk 0:02:55]}  Be7 {[%clk 0:02:47]} 7. e3 {[%clk 0:02:55]}  O-O {[%clk 0:02:48]} 8. Be2 {[%clk 0:02:52]}  h6 {[%clk 0:02:45]} 9. Bh4 {[%clk 0:02:51]}  Ne4 {[%clk 0:02:46]} 10. Bxe7 {[%clk 0:02:44]}  Nxe7 {[%clk 0:02:46]} 11. Rc1 {[%clk 0:02:44]}  Nxc3 {[%clk 0:02:45]} 12. bxc3 {[%clk 0:02:42]}  b6 {[%clk 0:02:38]} 13. O-O {[%clk 0:02:39]}  Bb7 {[%clk 0:02:38]} 14. Ne5 {[%clk 0:02:35]}  c5 {[%clk 0:02:36]} 15. Bf3 {[%clk 0:02:26]}  Qc7 {[%clk 0:02:29]} 16. c4 {[%clk 0:02:21]}  dxc4 {[%clk 0:02:29]} 17. Bxb7 {[%clk 0:02:12]}  Qxb7 {[%clk 0:02:30]} 18. dxc5 {[%clk 0:02:12]}  b5 {[%clk 0:02:17]} 19. a4 {[%clk 0:01:37]}  a6 {[%clk 0:02:17]} 20. axb5 {[%clk 0:01:36]}  axb5 {[%clk 0:02:18]} 21. Qd6 {[%clk 0:01:34]}  Rfd8 {[%clk 0:02:02]} 22. Qb6 {[%clk 0:01:22]}  Qxb6 {[%clk 0:01:57]} 23. cxb6 {[%clk 0:01:22]}  Rd5 {[%clk 0:01:26]} 24. Nxc4 {[%clk 0:01:22]}  bxc4 {[%clk 0:01:25]} 25. Rxc4 {[%clk 0:01:22]}  Rb5 {[%clk 0:01:23]} 26. Rc7 {[%clk 0:01:19]}  Nd5 {[%clk 0:01:23]} 27. Rd7 {[%clk 0:01:19]}  Rb8 {[%clk 0:01:14]} 28. Rd1 {[%clk 0:01:03]}  R8xb6 {[%clk 0:01:10]} 29. h3 {[%clk 0:01:01]}  Nf6 {[%clk 0:01:08]} 30. Rc7 {[%clk 0:01:01]}  Rd5 {[%clk 0:01:06]} 31. Ra1 {[%clk 0:00:59]}  Rbd6 {[%clk 0:01:03]} 32. Ra8+ {[%clk 0:00:56]}  Rd8 {[%clk 0:01:03]} 33. Raa7 {[%clk 0:00:56]}  R5d7 {[%clk 0:01:04]} 34. Rxd7 {[%clk 0:00:55]}  Rxd7 {[%clk 0:01:05]} 35. Ra8+ {[%clk 0:00:55]}  Kh7 {[%clk 0:01:05]} 36. g4 {[%clk 0:00:56]}  g5 {[%clk 0:01:03]} 37. Kg2 {[%clk 0:00:54]}  Rd2 {[%clk 0:00:59]} 38. Kf3 {[%clk 0:00:54]}  Kg7 {[%clk 0:00:59]} 39. Ra5 {[%clk 0:00:53]}  Nd5 {[%clk 0:00:56]} 40. Kg3 {[%clk 0:00:51]}  Nc3 {[%clk 0:00:55]} 41. f4 {[%clk 0:00:48]}  Nd5 {[%clk 0:00:35]} 42. Kf3 {[%clk 0:00:43]}  gxf4 {[%clk 0:00:20]} 43. exf4 {[%clk 0:00:42]}  Nc3 {[%clk 0:00:16]} 44. g5 {[%clk 0:00:32]}  h5 {[%clk 0:00:17]} 45. f5 {[%clk 0:00:32]}  Rd3+ {[%clk 0:00:15]} 46. Kf4 {[%clk 0:00:32]}  Rxh3 {[%clk 0:00:15]} 47. Ra7 {[%clk 0:00:32]}  Ne2+ {[%clk 0:00:13]} 48. Ke4 {[%clk 0:00:28]}  h4 {[%clk 0:00:12]} 49. g6 {[%clk 0:00:27]}  Ng3+ {[%clk 0:00:10]} 50. Kf4 {[%clk 0:00:25]}  Ne2+ {[%clk 0:00:06]} 51. Kg4 {[%clk 0:00:22]}  Rg3+ {[%clk 0:00:06]} 52. Kxh4 {[%clk 0:00:23]}  Rg1 {[%clk 0:00:04]} 53. Rxf7+ {[%clk 0:00:23]}  Kh6 {[%clk 0:00:04]} 54. Rh7# {[%clk 0:00:19]} 1-0


[Site "https://www.chess.com"]

[Event "Titled Tuesday Blitz March 01 Early 2022"]
[White "Hess, Robert"]
[Black "Caruana, Fabiano"]
[WhiteFideId "2022036"]
[BlackFideId "2020009"]
[WhiteElo "2557"]
[BlackElo "2744"]
[Result "0-1"]
[Round "10"]
[TimeControl "180+1"]
[Date "2022.03.01"]
[WhiteClock "0:00:04"]
[BlackClock "0:00:18"]

1. d4 {[%clk 0:03:00]}  Nf6 {[%clk 0:02:59]} 2. c4 {[%clk 0:03:01]}  e6 {[%clk 0:03:00]} 3. Nc3 {[%clk 0:03:01]}  Bb4 {[%clk 0:03:00]} 4. Bd2 {[%clk 0:03:02]}  O-O {[%clk 0:02:59]} 5. Nf3 {[%clk 0:03:00]}  b6 {[%clk 0:02:59]} 6. e3 {[%clk 0:02:58]}  Bb7 {[%clk 0:02:59]} 7. Be2 {[%clk 0:02:59]}  c5 {[%clk 0:02:57]} 8. a3 {[%clk 0:02:57]}  Bxc3 {[%clk 0:02:57]} 9. Bxc3 {[%clk 0:02:58]}  Ne4 {[%clk 0:02:57]} 10. Qc2 {[%clk 0:02:54]}  Nxc3 {[%clk 0:02:57]} 11. Qxc3 {[%clk 0:02:55]}  d6 {[%clk 0:02:56]} 12. O-O {[%clk 0:02:51]}  Nd7 {[%clk 0:02:56]} 13. Rfd1 {[%clk 0:02:51]}  Qe7 {[%clk 0:02:56]} 14. b4 {[%clk 0:02:51]}  Rac8 {[%clk 0:02:56]} 15. dxc5 {[%clk 0:02:49]}  dxc5 {[%clk 0:02:55]} 16. b5 {[%clk 0:02:38]}  e5 {[%clk 0:02:54]} 17. a4 {[%clk 0:02:31]}  e4 {[%clk 0:02:48]} 18. Nh4 {[%clk 0:02:25]}  g6 {[%clk 0:02:42]} 19. a5 {[%clk 0:02:22]}  Ne5 {[%clk 0:02:37]} 20. axb6 {[%clk 0:02:17]}  axb6 {[%clk 0:02:38]} 21. Ra7 {[%clk 0:02:05]}  Rc7 {[%clk 0:02:26]} 22. g3 {[%clk 0:01:43]}  Bc8 {[%clk 0:02:24]} 23. Rxc7 {[%clk 0:01:38]}  Qxc7 {[%clk 0:02:25]} 24. Rd5 {[%clk 0:01:35]}  f6 {[%clk 0:02:16]} 25. Qc2 {[%clk 0:01:23]}  Be6 {[%clk 0:01:58]} 26. Rd1 {[%clk 0:01:23]}  f5 {[%clk 0:01:55]} 27. Ng2 {[%clk 0:01:22]}  g5 {[%clk 0:01:54]} 28. h4 {[%clk 0:00:55]}  h6 {[%clk 0:01:52]} 29. Qc3 {[%clk 0:00:39]}  Qg7 {[%clk 0:01:51]} 30. Qa1 {[%clk 0:00:28]}  Nf3+ {[%clk 0:01:24]} 31. Bxf3 {[%clk 0:00:25]}  Qxa1 {[%clk 0:01:24]} 32. Rxa1 {[%clk 0:00:26]}  exf3 {[%clk 0:01:24]} 33. Ne1 {[%clk 0:00:26]}  g4 {[%clk 0:01:25]} 34. Nd3 {[%clk 0:00:15]}  Bxc4 {[%clk 0:01:24]} 35. Ne5 {[%clk 0:00:15]}  Bxb5 {[%clk 0:01:07]} 36. Rb1 {[%clk 0:00:16]}  Re8 {[%clk 0:01:03]} 37. Ng6 {[%clk 0:00:12]}  Bd3 {[%clk 0:00:38]} 38. Rxb6 {[%clk 0:00:13]}  c4 {[%clk 0:00:38]} 39. Rc6 {[%clk 0:00:10]}  Ra8 {[%clk 0:00:34]} 40. Ne5 {[%clk 0:00:02]}  Ra1+ {[%clk 0:00:33]} 41. Kh2 {[%clk 0:00:02]}  Rf1 {[%clk 0:00:32]} 42. Rg6+ {[%clk 0:00:01]}  Kh7 {[%clk 0:00:28]} 43. h5 {[%clk 0:00:02]}  Rxf2+ {[%clk 0:00:28]} 44. Kg1 {[%clk 0:00:03]}  Rg2+ {[%clk 0:00:28]} 45. Kh1 {[%clk 0:00:03]}  Rxg3 {[%clk 0:00:17]} 46. Nd7 {[%clk 0:00:03]}  Rh3+ {[%clk 0:00:18]} 47. Kg1 {[%clk 0:00:04]}  Rxh5 {[%clk 0:00:18]} 48. Rxg4 {[%clk 0:00:03]}  fxg4 {[%clk 0:00:18]} 49. Nf6+ {[%clk 0:00:04]}  Kg6 {[%clk 0:00:18]} 0-1


[Site "https://www.chess.com"]

[Event "Titled Tuesday Blitz March 01 Early 2022"]
[White "Hoffmann, Asa"]
[Black "Bogumil, Tatiana"]
[WhiteFideId "2001470"]
[BlackFideId "4110579"]
[WhiteElo "2117"]
[BlackElo "1862"]
[Result "1-0"]
[Round "10"]
[TimeControl "180+1"]
[Date "2022.03.01"]
[WhiteClock "0:01:18"]
[BlackClock "0:00:01"]

1. d4 {[%clk 0:02:40]}  Nf6 {[%clk 0:02:50]} 2. Bg5 {[%clk 0:02:37]}  e6 {[%clk 0:02:41]} 3. Nd2 {[%clk 0:02:36]}  d5 {[%clk 0:02:29]} 4. e3 {[%clk 0:02:32]}  c5 {[%clk 0:01:26]} 5. c3 {[%clk 0:02:30]}  Nc6 {[%clk 0:01:25]} 6. f4 {[%clk 0:02:29]}  Be7 {[%clk 0:01:19]} 7. Bd3 {[%clk 0:02:29]}  a6 {[%clk 0:01:18]} 8. Ngf3 {[%clk 0:02:28]}  b5 {[%clk 0:01:17]} 9. O-O {[%clk 0:02:28]}  h6 {[%clk 0:01:14]} 10. Bh4 {[%clk 0:02:28]}  Qb6 {[%clk 0:01:08]} 11. Ne5 {[%clk 0:02:27]}  g6 {[%clk 0:00:52]} 12. Nxg6 {[%clk 0:02:24]}  fxg6 {[%clk 0:00:38]} 13. Bxg6+ {[%clk 0:02:23]}  Kd8 {[%clk 0:00:30]} 14. Qf3 {[%clk 0:02:18]}  Bd7 {[%clk 0:00:22]} 15. Qh3 {[%clk 0:02:13]}  Kc7 {[%clk 0:00:20]} 16. Nf3 {[%clk 0:02:11]}  Raf8 {[%clk 0:00:18]} 17. Ne5 {[%clk 0:02:08]}  Ne4 {[%clk 0:00:13]} 18. Bxe4 {[%clk 0:02:04]}  Bxh4 {[%clk 0:00:09]} 19. Bxd5 {[%clk 0:01:52]}  Nxe5 {[%clk 0:00:07]} 20. Qxh4 {[%clk 0:01:45]}  exd5 {[%clk 0:00:07]} 21. fxe5 {[%clk 0:01:45]}  Qe6 {[%clk 0:00:06]} 22. h3 {[%clk 0:01:44]}  Rhg8 {[%clk 0:00:05]} 23. Kh2 {[%clk 0:01:42]}  Rxf1 {[%clk 0:00:03]} 24. Rxf1 {[%clk 0:01:41]}  Rg6 {[%clk 0:00:01]} 25. g4 {[%clk 0:01:38]}  Kc6 {[%clk 0:00:01]} 26. Qd8 {[%clk 0:01:33]}  Qe8 {[%clk 0:00:01]} 27. Qxe8 {[%clk 0:01:32]}  Bxe8 {[%clk 0:00:02]} 28. Kg3 {[%clk 0:01:32]}  Kd7 {[%clk 0:00:01]} 29. Rf8 {[%clk 0:01:30]}  Ke7 {[%clk 0:00:01]} 30. Rf5 {[%clk 0:01:26]}  b4 {[%clk 0:00:01]} 31. dxc5 {[%clk 0:01:25]}  bxc3 {[%clk 0:00:01]} 32. bxc3 {[%clk 0:01:24]}  Ke6 {[%clk 0:00:02]} 33. Kf4 {[%clk 0:01:23]}  Ke7 {[%clk 0:00:02]} 34. h4 {[%clk 0:01:23]}  Bf7 {[%clk 0:00:01]} 35. g5 {[%clk 0:01:22]}  hxg5+ {[%clk 0:00:01]} 36. hxg5 {[%clk 0:01:22]}  Be6 {[%clk 0:00:01]} 37. Rf6 {[%clk 0:01:23]}  Rg7 {[%clk 0:00:01]} 38. e4 {[%clk 0:01:22]}  a5 {[%clk 0:00:01]} 39. exd5 {[%clk 0:01:21]}  Bxd5 {[%clk 0:00:02]} 40. Ra6 {[%clk 0:01:20]}  Rg8 {[%clk 0:00:01]} 41. Rxa5 {[%clk 0:01:19]}  Rf8+ {[%clk 0:00:01]} 42. Ke3 {[%clk 0:01:19]}  Rf3+ {[%clk 0:00:01]} 43. Kd4 {[%clk 0:01:19]}  Be6 {[%clk 0:00:01]} 44. Ra7+ {[%clk 0:01:18]} 1-0


[Site "https://www.chess.com"]

[Event "Titled Tuesday Blitz March 01 Early 2022"]
[White "Indjic, Aleksandar"]
[Black "Timofeev, Artyom"]
[WhiteFideId "911925"]
[BlackFideId "4140419"]
[WhiteElo "2616"]
[BlackElo "2583"]
[Result "1-0"]
[Round "10"]
[TimeControl "180+1"]
[Date "2022.03.01"]
[WhiteClock "0:00:29"]
[BlackClock "0:00:07"]

1. e4 {[%clk 0:03:00]}  c5 {[%clk 0:02:59]} 2. f4 {[%clk 0:02:59]}  Nc6 {[%clk 0:02:59]} 3. Bb5 {[%clk 0:02:58]}  Nd4 {[%clk 0:02:57]} 4. Bc4 {[%clk 0:02:55]}  e6 {[%clk 0:02:57]} 5. c3 {[%clk 0:02:52]}  d5 {[%clk 0:02:52]} 6. Bf1 {[%clk 0:02:51]}  Nc6 {[%clk 0:02:51]} 7. e5 {[%clk 0:02:52]}  d4 {[%clk 0:02:50]} 8. Bd3 {[%clk 0:02:49]}  f5 {[%clk 0:02:34]} 9. Nf3 {[%clk 0:02:45]}  Nge7 {[%clk 0:02:34]} 10. a3 {[%clk 0:02:42]}  Nd5 {[%clk 0:02:33]} 11. g3 {[%clk 0:02:40]}  Be7 {[%clk 0:02:26]} 12. h4 {[%clk 0:02:34]}  O-O {[%clk 0:02:24]} 13. Bb5 {[%clk 0:02:31]}  Bd7 {[%clk 0:02:22]} 14. Qe2 {[%clk 0:02:30]}  a6 {[%clk 0:02:18]} 15. Bd3 {[%clk 0:02:26]}  b5 {[%clk 0:02:16]} 16. c4 {[%clk 0:02:22]}  bxc4 {[%clk 0:02:14]} 17. Bxc4 {[%clk 0:02:22]}  Na5 {[%clk 0:02:05]} 18. d3 {[%clk 0:02:21]}  Rb8 {[%clk 0:02:00]} 19. Bxd5 {[%clk 0:02:15]}  exd5 {[%clk 0:02:00]} 20. Nbd2 {[%clk 0:02:15]}  Be8 {[%clk 0:01:47]} 21. b4 {[%clk 0:02:12]}  Nc6 {[%clk 0:01:35]} 22. O-O {[%clk 0:01:53]}  Bh5 {[%clk 0:01:29]} 23. Qf2 {[%clk 0:01:52]}  Qb6 {[%clk 0:01:14]} 24. Nb3 {[%clk 0:01:46]}  cxb4 {[%clk 0:01:05]} 25. Nfxd4 {[%clk 0:01:45]}  Nxd4 {[%clk 0:01:00]} 26. Nxd4 {[%clk 0:01:44]}  Bc5 {[%clk 0:00:59]} 27. Be3 {[%clk 0:01:43]}  bxa3 {[%clk 0:00:57]} 28. Nxf5 {[%clk 0:01:43]}  Bxe3 {[%clk 0:00:49]} 29. Nxe3 {[%clk 0:01:42]}  Qd4 {[%clk 0:00:49]} 30. Nc2 {[%clk 0:01:35]}  Qb2 {[%clk 0:00:34]} 31. Nd4 {[%clk 0:01:15]}  Rfc8 {[%clk 0:00:30]} 32. f5 {[%clk 0:01:15]}  Qxf2+ {[%clk 0:00:29]} 33. Kxf2 {[%clk 0:01:14]}  Rc3 {[%clk 0:00:29]} 34. Ke3 {[%clk 0:01:13]}  Rb2 {[%clk 0:00:29]} 35. e6 {[%clk 0:01:12]}  Kf8 {[%clk 0:00:27]} 36. Rg1 {[%clk 0:00:54]}  Bg4 {[%clk 0:00:26]} 37. Kf4 {[%clk 0:00:52]}  Rxd3 {[%clk 0:00:21]} 38. Ke5 {[%clk 0:00:52]}  Re3+ {[%clk 0:00:15]} 39. Kd6 {[%clk 0:00:52]}  Rb6+ {[%clk 0:00:12]} 40. Nc6 {[%clk 0:00:50]}  Rc3 {[%clk 0:00:11]} 41. Kd7 {[%clk 0:00:49]}  Bxf5 {[%clk 0:00:09]} 42. Rgf1 {[%clk 0:00:49]}  Rbxc6 {[%clk 0:00:07]} 43. Rxf5+ {[%clk 0:00:47]}  Kg8 {[%clk 0:00:07]} 44. Raf1 {[%clk 0:00:44]}  Rc7+ {[%clk 0:00:07]} 45. Kd6 {[%clk 0:00:44]}  R7c6+ {[%clk 0:00:06]} 46. Ke5 {[%clk 0:00:42]}  Rc8 {[%clk 0:00:06]} 47. e7 {[%clk 0:00:41]}  g6 {[%clk 0:00:07]} 48. Rf8+ {[%clk 0:00:40]}  Kg7 {[%clk 0:00:07]} 49. R1f7+ {[%clk 0:00:35]}  Kh6 {[%clk 0:00:07]} 50. Rxc8 {[%clk 0:00:30]}  Rxc8 {[%clk 0:00:07]} 51. Rf3 {[%clk 0:00:30]}  a2 {[%clk 0:00:07]} 52. Ra3 {[%clk 0:00:30]}  Re8 {[%clk 0:00:07]} 53. Kf6 {[%clk 0:00:30]}  d4 {[%clk 0:00:08]} 54. Rxa2 {[%clk 0:00:29]}  d3 {[%clk 0:00:08]} 55. Kf7 {[%clk 0:00:29]}  Rb8 {[%clk 0:00:06]} 56. e8=Q {[%clk 0:00:29]}  Rxe8 {[%clk 0:00:06]} 57. Kxe8 {[%clk 0:00:29]}  Kh5 {[%clk 0:00:06]} 58. Rd2 {[%clk 0:00:29]}  Kg4 {[%clk 0:00:07]} 59. Rxd3 {[%clk 0:00:30]}  a5 {[%clk 0:00:07]} 60. Kf7 {[%clk 0:00:29]} 1-0


[Site "https://www.chess.com"]

[Event "Titled Tuesday Blitz March 01 Early 2022"]
[White "Iskusnyh, Sergei"]
[Black "Hamley, Ryan"]
[WhiteFideId "4120027"]
[BlackFideId "30959497"]
[WhiteElo "2492"]
[BlackElo "2565"]
[Result "0-1"]
[Round "10"]
[TimeControl "180+1"]
[Date "2022.03.01"]
[WhiteClock "0:00:05"]
[BlackClock "0:00:11"]

1. d4 {[%clk 0:03:00]}  Nf6 {[%clk 0:02:57]} 2. c4 {[%clk 0:03:00]}  e6 {[%clk 0:02:57]} 3. g3 {[%clk 0:03:00]}  d5 {[%clk 0:02:55]} 4. Nf3 {[%clk 0:02:59]}  dxc4 {[%clk 0:02:53]} 5. Bg2 {[%clk 0:02:59]}  Be7 {[%clk 0:02:52]} 6. O-O {[%clk 0:02:58]}  O-O {[%clk 0:02:52]} 7. Qa4 {[%clk 0:02:58]}  a6 {[%clk 0:02:52]} 8. Qxc4 {[%clk 0:02:58]}  b5 {[%clk 0:02:51]} 9. Qc2 {[%clk 0:02:59]}  Bb7 {[%clk 0:02:51]} 10. Bd2 {[%clk 0:02:59]}  a5 {[%clk 0:02:42]} 11. Nc3 {[%clk 0:02:49]}  b4 {[%clk 0:02:41]} 12. Na4 {[%clk 0:02:49]}  Nbd7 {[%clk 0:02:39]} 13. Rac1 {[%clk 0:02:46]}  Rc8 {[%clk 0:02:39]} 14. Be3 {[%clk 0:01:56]}  Be4 {[%clk 0:02:32]} 15. Qd2 {[%clk 0:01:53]}  Nd5 {[%clk 0:02:18]} 16. Rfd1 {[%clk 0:01:45]}  Bd6 {[%clk 0:01:53]} 17. Ng5 {[%clk 0:01:27]}  Bxg2 {[%clk 0:01:44]} 18. Kxg2 {[%clk 0:01:28]}  N7f6 {[%clk 0:01:43]} 19. Qd3 {[%clk 0:01:19]}  Qd7 {[%clk 0:01:21]} 20. Nc5 {[%clk 0:01:16]}  Qe7 {[%clk 0:01:15]} 21. Nge4 {[%clk 0:01:10]}  Rfd8 {[%clk 0:01:13]} 22. Bg5 {[%clk 0:01:08]}  h6 {[%clk 0:01:07]} 23. Nxf6+ {[%clk 0:01:08]}  Nxf6 {[%clk 0:01:08]} 24. Bxf6 {[%clk 0:01:07]}  Qxf6 {[%clk 0:01:06]} 25. Qf3 {[%clk 0:01:03]}  Qe7 {[%clk 0:01:03]} 26. e3 {[%clk 0:01:02]}  e5 {[%clk 0:00:56]} 27. Nb7 {[%clk 0:01:02]}  Re8 {[%clk 0:00:52]} 28. Nxa5 {[%clk 0:01:01]}  exd4 {[%clk 0:00:46]} 29. Nc6 {[%clk 0:01:01]}  Qe6 {[%clk 0:00:45]} 30. Rxd4 {[%clk 0:00:50]}  Qxa2 {[%clk 0:00:45]} 31. Rc2 {[%clk 0:00:46]}  b3 {[%clk 0:00:41]} 32. Rcd2 {[%clk 0:00:46]}  Qb1 {[%clk 0:00:39]} 33. Qg4 {[%clk 0:00:43]}  Ra8 {[%clk 0:00:37]} 34. Qf3 {[%clk 0:00:27]}  Ra2 {[%clk 0:00:36]} 35. Kh3 {[%clk 0:00:28]}  Rxb2 {[%clk 0:00:35]} 36. Rxb2 {[%clk 0:00:27]}  Qxb2 {[%clk 0:00:35]} 37. Qd5 {[%clk 0:00:25]}  Qxf2 {[%clk 0:00:32]} 38. Qxb3 {[%clk 0:00:21]}  Qxe3 {[%clk 0:00:18]} 39. Qc4 {[%clk 0:00:17]}  Qf2 {[%clk 0:00:15]} 40. Rg4 {[%clk 0:00:14]}  Re2 {[%clk 0:00:12]} 41. Rxg7+ {[%clk 0:00:06]}  Kxg7 {[%clk 0:00:12]} 42. Qc3+ {[%clk 0:00:06]}  Qf6 {[%clk 0:00:11]} 43. Qc4 {[%clk 0:00:05]}  Qe6+ {[%clk 0:00:11]} 44. Qxe6 {[%clk 0:00:05]}  Rxe6 {[%clk 0:00:11]} 0-1


[Site "https://www.chess.com"]